bitfinex/quotes_SOLUSD_20240530
["timestamp","ask_amount","ask_price","bid_price","bid_amount"]
[1717093880689,8.6534,171.18,171.13,2.162]
[1717093880992,2.1616,171.17,171.12,2.1621]
[1717093881174,5.0,171.2,171.1,62.1623]
[1717093881175,10.8147,171.19,171.1,62.1623]
[1717093881487,10.8147,171.19,171.1,60.0]
[1717093882374,2.1618,171.16,171.11,2.1623]
[1717093883386,7.38,171.12,171.1,2.1624]
[1717093883588,7.38,171.11,171.09,2.1625]
[1717093883896,2.1618,171.15,171.09,2.1625]
[1717093884195,8.6445,171.14,171.09,2.1625]
[1717093884709,15.3722,171.17,171.08,2.1627]
[1717093884710,6.4825,171.12,171.08,2.1627]
[1717093884911,8.6447,171.12,171.07,2.1628]
[1717093885789,6.4825,171.12,171.07,2.1628]
[1717093886093,8.3942,171.14,171.09,60.0]
[1717093886493,8.3942,171.14,171.07,60.0]
[1717093887194,2.1621,171.13,171.08,2.1626]
[1717093887400,8.3943,171.13,171.08,2.1626]
[1717093887702,7.38,171.09,171.08,2.1626]
[1717093889896,7.38,171.09,171.07,62.1628]
[1717093890103,6.1002,171.11,171.07,2.1628]
[1717093892702,6.1002,171.11,171.05,60.0]
[1717093893007,8.4911,171.13,171.08,2.1627]
[1717093893783,8.4911,171.13,171.05,8.6523]
[1717093893784,6.329,171.14,171.06,2.1628]
[1717093894104,2.1623,171.11,171.06,2.1628]
[1717093894304,8.4912,171.12,171.07,2.1628]
[1717093894686,2.1623,171.11,171.06,2.1629]
[1717093895188,8.4912,171.12,171.07,2.1628]
[1717093895686,15.3206,171.07,171.03,0.8192631]
[1717093895886,7.38,171.04,171.03,0.8192631]
[1717093896911,6.3263,171.1,171.03,0.8192631]
[1717093897203,8.4891,171.08,171.03,0.8192631]
[1717093897387,2.1628,171.07,171.03,0.8192631]
[1717093897597,8.489,171.08,171.03,0.8192631]
[1717093897917,15.3206,171.11,171.03,60.8192631]
[1717093898120,2.1622,171.12,171.06,2.1629]
[1717093898412,2.1622,171.12,171.07,60.0]
[1717093899201,2.1623,171.11,171.07,60.0]
[1717093901299,2.1623,171.11,171.05,2.163]
[1717093901506,2.1624,171.1,171.05,2.163]
[1717093901706,6.2103,171.13,171.06,60.0]
[1717093901707,2.1624,171.11,171.06,60.0]
[1717093902021,2.1622,171.12,171.08,60.0]
[1717093903508,20.239,171.16,171.11,60.0]
[1717093903509,2.1617,171.16,171.11,60.0]
[1717093903713,5.0,171.2,171.14,60.0]
[1717093903910,5.0,171.2,171.14,62.1619]
[1717093903911,7.38,171.15,171.14,62.1619]
[1717093904415,7.1612,171.2,171.16,60.0]
[1717093904715,2.1613,171.19,171.16,60.0]
[1717093905404,7.1612,171.2,171.16,60.0]
[1717093907809,5.0,171.2,171.18,60.0]
[1717093908614,7.1612,171.2,171.18,60.0]
[1717093908818,5.0,171.2,171.18,60.0]
[1717093911019,5.0,171.2,171.16,62.1616]
[1717093911507,5.0,171.2,171.18,60.0]
[1717093911917,5.0,171.2,171.16,2.1615]
[1717093912095,7.38,171.17,171.16,2.1615]
[1717093912495,5.0,171.2,171.16,2.1615]
[1717093913423,5.0,171.2,171.15,60.0]
[1717093913922,2.1612,171.2,171.15,62.1618]
[1717093914323,2.1611,171.21,171.17,60.0]
[1717093914694,2.1609,171.22,171.17,62.1615]
[1717093915100,7.38,171.18,171.17,62.1615]
[1717093915517,2.1609,171.22,171.19,60.0]
[1717093916437,2.1608,171.24,171.19,62.1612]
[1717093918826,2.1608,171.23,171.19,60.0]
[1717093919415,2.1607,171.24,171.19,62.1613]
[1717093920328,2.1607,171.24,171.21,60.0]
[1717093921918,7.38,171.27,171.23,60.0]
[1717093922122,7.38,171.24,171.23,62.1607]
[1717093923662,7.38,171.27,171.23,62.1607]
[1717093923824,9.5403,171.27,171.23,62.1607]
[1717093924739,7.38,171.27,171.23,62.1607]
[1717093925441,7.38,171.24,171.23,62.1607]
[1717093928637,7.38,171.24,171.22,2.1608]
[1717093928934,7.38,171.23,171.22,2.1608]
[1717093929514,7.38,171.23,171.22,2.1609]
[1717093932227,7.38,171.23,171.19,60.0]
[1717093932433,2.1606,171.25,171.19,60.0]
[1717093932626,2.1606,171.25,171.16,24.0348]
[1717093932627,6.4818,171.25,171.16,60.0]
[1717093932829,2.1611,171.21,171.18,60.0]
[1717093933031,2.1609,171.22,171.18,60.0]
[1717093933335,2.1608,171.23,171.18,62.1614]
[1717093934134,12.9628,171.26,171.17,2.1615]
[1717093934135,2.1609,171.22,171.17,2.1615]
[1717093934350,8.643,171.24,171.16,60.0]
[1717093934643,2.1613,171.19,171.14,62.1619]
[1717093935023,7.38,171.15,171.14,62.1619]
[1717093937546,7.38,171.15,171.14,60.0]
[1717093937857,7.38,171.15,171.13,2.162]
[1717093938020,7.38,171.15,171.14,2.1619]
[1717093938226,2.1613,171.19,171.14,2.1619]
[1717093938620,6.1577,171.19,171.12,60.0]
[1717093938818,2.1616,171.17,171.12,62.1621]
[1717093939048,2.1615,171.18,171.12,62.1621]
[1717093940151,2.1615,171.18,171.13,2.162]
[1717093940356,2.1615,171.18,171.12,62.1621]
[1717093940648,2.1616,171.17,171.12,62.1621]
[1717093941451,2.1617,171.16,171.12,60.0]
[1717093942082,2.1616,171.17,171.12,62.1622]
[1717093943258,2.1615,171.18,171.13,2.162]
[1717093943441,2.1615,171.17,171.12,62.1621]
[1717093944957,6.08635864,171.22,171.12,60.0]
[1717093945138,6.08635864,171.22,171.08,8.6507]
[1717093945139,7.38,171.13,171.06,60.0]
[1717093945344,2.1623,171.11,171.06,62.1629]
[1717093945535,7.38,171.07,171.06,62.1629]
[1717093946353,7.38,171.07,171.06,2.1629]
[1717093946565,2.1623,171.11,171.06,62.1629]
[1717093946849,10.8101,171.14,171.03,0.8192631]
[1717093946850,2.162,171.14,171.08,62.1626]
[1717093947060,7.38,171.09,171.08,62.1626]
[1717093948232,2.1622,171.12,171.08,62.1626]
[1717093948643,2.1622,171.12,171.08,2.1626]
[1717093948946,2.1621,171.13,171.08,2.1626]
[1717093949651,2.1622,171.12,171.07,2.1628]
[1717093950058,2.1623,171.11,171.06,62.1629]
[1717093950647,2.1622,171.12,171.07,2.1628]
[1717093951278,2.1623,171.11,171.06,62.1629]
[1717093951776,2.1622,171.12,171.06,60.0]
[1717093952097,2.162,171.14,171.09,62.1625]
[1717093952573,2.1621,171.13,171.09,62.1625]
[1717093952946,2.162,171.14,171.09,62.1625]
[1717093954059,2.1623,171.12,171.07,60.0]
[1717093954266,2.1623,171.12,171.07,62.1627]
[1717093954478,2.1623,171.12,171.07,68.5073]
[1717093954776,2.1623,171.12,171.08,2.1627]
[1717093955266,2.1621,171.13,171.08,2.1627]
[1717093957679,2.1621,171.13,171.09,2.1625]
[1717093958167,2.1621,171.13,171.09,60.0]
[1717093958688,17.1621,171.13,171.09,60.0]
[1717093959095,17.1621,171.13,171.09,62.1625]
[1717093959264,15.0,171.13,171.09,62.1625]
[1717093959598,17.1621,171.13,171.09,62.1625]
[1717093960082,17.1621,171.13,171.07,6.3446]
[1717093960083,15.0,171.13,171.12,60.0]
[1717093960273,15.0,171.13,171.12,62.1622]
[1717093960589,22.38,171.13,171.12,62.1622]
[1717093960875,22.38,171.13,171.12,60.0]
[1717093961261,22.38,171.13,171.12,62.1622]
[1717093961985,15.0,171.13,171.12,62.1622]
[1717093962153,15.0,171.13,171.12,60.0]
[1717093963286,15.0,171.13,171.12,62.1622]
[1717093964478,15.0,171.13,171.08,66.1253]
[1717093964780,15.0,171.13,171.09,2.1625]
[1717093964980,17.1621,171.13,171.09,2.1625]
[1717093965189,7.38,171.1,171.09,2.1625]
[1717093967363,7.38,171.1,171.09,47.1625]
[1717093968668,7.38,171.1,171.09,2.1625]
[1717093969570,7.38,171.1,171.08,62.1626]
[1717093969886,2.1622,171.12,171.08,62.1626]
[1717093970090,2.1622,171.12,171.09,45.0]
[1717093970592,17.1621,171.13,171.09,45.0]
[1717093971584,15.0,171.13,171.1,60.0]
[1717093971770,15.0,171.13,171.11,2.1622]
[1717093972100,7.38,171.12,171.11,47.1622]
[1717093972583,7.38,171.12,171.11,32.1622]
[1717093972787,7.38,171.12,171.11,34.3244]
[1717093973185,7.38,171.12,171.11,32.1622]
[1717093978693,7.38,171.12,171.08,60.0]
[1717093978899,2.1621,171.13,171.09,2.1625]
[1717093979069,2.162,171.14,171.1,60.0]
[1717093979272,7.38,171.11,171.1,60.0]
[1717093979889,7.38,171.11,171.1,62.1624]
[1717093984094,7.38,171.11,171.09,2.1625]
[1717093984491,2.1619,171.14,171.08,62.1626]
[1717093985001,2.1619,171.14,171.09,2.1626]
[1717093985479,4.3233,171.17,171.08,62.1626]
[1717093985480,2.1621,171.13,171.08,62.1626]
[1717093985882,7.38,171.1,171.08,62.1626]
[1717093987495,7.38,171.1,171.09,45.0]
[1717093989488,9.5424,171.1,171.09,45.0]
[1717093989792,9.5424,171.1,171.05,2.163]
[1717093989979,2.1624,171.1,171.05,2.163]
[1717093990707,2.1624,171.1,171.04,2.1631]
[1717093991401,2.1624,171.11,171.05,60.0]
[1717093991703,2.1624,171.11,171.06,2.1629]
[1717093991882,2.1622,171.12,171.07,2.1628]
[1717093992078,2.1622,171.12,171.07,47.1628]
[1717093992501,2.1622,171.12,171.07,2.1628]
[1717093992875,2.1622,171.12,171.06,45.0]
[1717093993201,2.1623,171.11,171.06,47.1629]
[1717093994003,8.8191,171.11,171.06,45.0]
[1717093995081,2.1624,171.1,171.06,45.0]
[1717093996097,6.4618,171.09,171.06,45.0]
[1717093996301,2.1628,171.08,171.06,45.0]
[1717093996686,8.4823,171.08,171.06,45.0]
[1717093996987,6.3195,171.08,171.06,45.0]
[1717093997196,8.4822,171.08,171.06,45.0]
[1717093997484,6.3195,171.08,171.06,45.0]
[1717093997787,6.3195,171.08,171.03,0.8192631]
[1717093997788,2.1631,171.06,171.03,0.8192631]
[1717093997979,2.1629,171.07,171.03,0.8192631]
[1717093998378,15.9716,171.07,171.03,0.8192631]
[1717093998610,2.1631,171.05,171.03,0.8192631]
[1717093998788,2.1632,171.04,171.03,0.8192631]
[1717093998990,9.5432,171.04,171.03,0.8192631]
[1717093999388,15.8627,171.04,171.03,0.8192631]
[1717093999598,31.8343,171.04,171.03,0.8192631]
[1717094002409,2.1632,171.04,171.03,0.8192631]
[1717094002708,2.163,171.06,171.03,0.8192631]
[1717094002912,7.38,171.04,171.03,0.8192631]
[1717094004009,9.5432,171.04,171.03,0.8192631]
[1717094005214,10.40745681,171.08,171.03,0.8192631]
[1717094005514,7.38,171.04,171.03,0.8192631]
[1717094009021,6.0818274,171.08,171.03,0.8192631]
[1717094009022,2.1628,171.08,171.03,0.8192631]
[1717094009219,7.38,171.04,171.03,0.8192631]
[1717094017735,2.1627,171.08,171.03,0.8192631]
[1717094018023,7.38,171.04,171.03,0.8192631]
[1717094022325,9.5432,171.04,171.03,0.8192631]
[1717094024726,2.1635,171.02,170.96,2.1641]
[1717094025034,2.1635,171.02,170.97,2.1641]
[1717094025810,2.1634,171.03,170.97,2.1641]
[1717094026011,7.38,170.98,170.97,2.1641]
[1717094028629,7.38,170.98,170.95,45.0]
[1717094028843,7.38,170.97,170.96,2.1642]
[1717094030727,2.1635,171.02,170.97,2.164]
[1717094031333,8.5974,171.01,170.93,6.4938]
[1717094031619,7.38,170.94,170.93,2.1646]
[1717094032035,2.164,170.98,170.9,70.8248]
[1717094032213,2.1641,170.97,170.92,2.1646]
[1717094032418,8.5976,170.99,170.93,2.1645]
[1717094032722,2.1639,170.99,170.94,2.1644]
[1717094033517,2.1639,170.99,170.95,7.02368085]
[1717094035533,2.1636,171.01,170.96,2.1641]
[1717094036124,2.1636,171.01,170.95,62.1643]
[1717094036338,2.1636,171.01,170.95,2.1643]
[1717094036539,2.1636,171.01,170.96,2.1642]
[1717094038639,2.1636,171.01,170.93,64.3291]
[1717094038640,2.1635,171.02,170.97,2.1641]
[1717094038851,2.1635,171.02,170.97,68.6015]
[1717094039043,2.1635,171.02,170.97,8.6015]
[1717094039234,2.1636,171.01,170.96,2.1641]
[1717094039547,7.38,170.98,170.96,2.1641]
[1717094040551,7.38,170.98,170.97,2.1641]
[1717094042087,2.1632,171.04,170.99,60.0]
[1717094042239,4.3258,171.07,170.99,2.1637]
[1717094043051,12.5088585,171.08,170.95,70.7661]
[1717094043222,2.1635,171.02,170.95,6.4375]
[1717094043429,2.1635,171.02,170.97,2.164]
[1717094043632,4.3264,171.04,170.95,60.0]
[1717094043829,2.1635,171.02,170.97,2.1641]
[1717094049425,2.1636,171.01,170.96,2.1642]
[1717094050152,2.1635,171.02,170.97,2.164]
[1717094050532,2.1632,171.04,170.97,2.164]
[1717094054534,2.1632,171.04,170.98,2.1639]
[1717094056054,2.1632,171.04,170.97,2.164]
[1717094057353,2.1632,171.04,170.97,62.164]
[1717094057534,2.1632,171.04,170.98,45.0]
[1717094058651,6.06711882,171.06,171.0,60.0]
[1717094058855,7.38,171.03,171.01,47.1635]
[1717094059036,7.38,171.03,171.01,45.0]
[1717094059657,2.1628,171.07,171.01,45.0]
[1717094059658,7.38,171.02,171.01,45.0]
[1717094060159,7.38,171.02,171.01,47.1636]
[1717094060534,6.4364,171.08,171.01,45.0]
[1717094060737,6.06525913,171.09,171.04,60.0]
[1717094061046,2.1624,171.11,171.05,45.0]
[1717094061736,8.7169,171.12,171.05,47.163]
[1717094062170,2.1623,171.11,171.05,45.0]
[1717094062358,2.1624,171.1,171.05,45.0]
[1717094062657,6.5547,171.12,171.05,45.0]
[1717094062658,8.7169,171.12,171.05,45.0]
[1717094062848,6.5547,171.12,171.05,45.0]
[1717094063353,21.8217,171.17,171.05,45.0]
[1717094063540,2.162,171.14,171.06,2.1629]
[1717094063744,2.1621,171.13,171.05,45.0]
[1717094064075,2.1619,171.14,171.06,62.1628]
[1717094064250,7.38,171.11,171.07,45.0]
[1717094064439,2.1618,171.15,171.08,2.1626]
[1717094064635,7.38,171.11,171.08,2.1626]
[1717094065951,2.1618,171.15,171.08,2.1626]
[1717094066752,2.1618,171.15,171.01,8.77316783]
[1717094066753,6.4858,171.15,171.01,8.77316783]
[1717094066960,2.1622,171.12,171.04,2.1631]
[1717094067375,2.1622,171.12,171.05,2.163]
[1717094068458,2.1623,171.11,171.04,2.1631]
[1717094069173,2.1623,171.11,171.03,47.1633]
[1717094069472,2.1623,171.11,171.04,2.1632]
[1717094069849,2.1623,171.11,171.03,47.1633]
[1717094070848,2.1623,171.11,171.04,2.1631]
[1717094071056,2.1622,171.12,171.04,2.1631]
[1717094071255,2.1623,171.11,171.04,2.1631]
[1717094071656,2.1622,171.12,171.04,2.1631]
[1717094072855,2.1623,171.11,171.04,2.1631]
[1717094075180,8.22302915,171.12,171.05,2.1631]
[1717094075479,7.38,171.08,171.05,47.1631]
[1717094075857,7.38,171.08,171.05,45.0]
[1717094077578,2.1623,171.11,171.05,45.0]
[1717094078472,6.06082915,171.12,171.05,105.0]
[1717094078675,26.145,171.17,171.05,105.0]
[1717094078880,7.38,171.1,171.06,2.1628]
[1717094079184,2.162,171.14,171.07,2.1628]
[1717094079382,2.162,171.14,171.07,105.0]
[1717094079562,7.38,171.11,171.07,105.0]
[1717094079891,2.1618,171.15,171.07,107.1627]
[1717094080361,7.38,171.11,171.07,107.1627]
[1717094080686,7.38,171.11,171.07,45.0]
[1717094080852,2.1619,171.14,171.07,2.1628]
[1717094081054,2.1619,171.14,171.07,107.1628]
[1717094081761,2.1619,171.15,171.07,107.1628]
[1717094081981,7.38,171.1,171.07,47.1628]
[1717094082161,7.38,171.1,171.07,2.1628]
[1717094082959,7.38,171.1,171.08,2.1627]
[1717094083158,7.38,171.1,171.08,47.1627]
[1717094083669,7.38,171.1,171.08,45.0]
[1717094091490,2.162,171.14,171.08,45.0]
[1717094099795,6.05981022,171.16,171.08,45.0]
[1717094102575,7.38,171.12,171.08,45.0]
[1717094102981,6.05981022,171.16,171.08,45.0]
[1717094103411,2.162,171.14,171.08,45.0]
[1717094104199,2.1621,171.13,171.08,45.0]
[1717094104582,8.6615,171.13,171.08,45.0]
[1717094105984,8.6615,171.13,171.07,45.0]
[1717094106191,8.6615,171.13,171.09,45.0]
[1717094106400,8.6615,171.13,171.07,45.0]
[1717094107008,7.38,171.09,171.06,47.1629]
[1717094108392,8.6615,171.13,171.06,47.1629]
[1717094108393,6.4994,171.13,171.07,2.1628]
[1717094108593,6.4994,171.13,171.07,47.1628]
[1717094110813,6.05514966,171.16,171.08,2.1627]
[1717094111010,7.38,171.11,171.08,47.1627]
[1717094111512,7.38,171.11,171.08,2.1627]
[1717094112696,7.38,171.11,171.07,47.1628]
[1717094116088,22.5952,171.1,171.05,8.77270227]
[1717094116299,7.38,171.06,171.04,8.77270227]
[1717094116513,7.38,171.06,171.03,10.93590227]
[1717094117013,7.38,171.06,171.04,2.1632]
[1717094117198,7.38,171.06,171.03,2.1633]
[1717094117518,7.38,171.06,171.04,2.1632]
[1717094117898,22.5952,171.1,171.04,2.1632]
[1717094118605,22.5952,171.1,171.02,8.77270227]
[1717094118818,6.0860448,171.09,171.03,2.1633]
[1717094119004,6.0860448,171.09,171.02,8.77270227]
[1717094119211,6.0860448,171.09,171.01,8.77270227]
[1717094119410,6.0860448,171.09,171.02,10.93610227]
[1717094119611,6.0860448,171.09,171.01,8.77270227]
[1717094119612,7.38,171.03,171.01,8.77270227]
[1717094119819,6.0860448,171.09,171.01,8.77270227]
[1717094120206,6.0860448,171.09,171.0,10.93640227]
[1717094120922,22.5952,171.1,171.01,2.1636]
[1717094121123,22.5952,171.1,171.02,2.1634]
[1717094121909,22.5952,171.1,171.01,55.93878262]
[1717094122221,22.5952,171.1,171.02,2.1634]
[1717094122630,7.38,171.06,171.02,2.1634]
[1717094124749,7.38,171.05,171.02,2.1634]
[1717094125240,7.38,171.05,171.01,47.1636]
[1717094129349,22.5952,171.1,171.02,2.1634]
[1717094129510,22.5952,171.1,171.03,60.0]
[1717094129717,7.38,171.1,171.04,54.5431]
[1717094130115,6.08766954,171.13,171.05,2.163]
[1717094130347,6.08766954,171.13,171.06,2.1629]
[1717094130729,22.581,171.14,171.06,47.1629]
[1717094131359,22.581,171.14,171.06,45.0]
[1717094131512,22.581,171.14,171.07,69.5428]
[1717094131849,13.9354,171.13,171.08,45.0]
[1717094132635,7.38,171.12,171.08,45.0]
[1717094132816,15.5657,171.12,171.08,45.0]
[1717094133027,6.5536,171.11,171.08,45.0]
[1717094135124,6.1191,171.15,171.08,45.0]
[1717094135318,6.1191,171.15,171.07,47.1628]
[1717094135849,7.38,171.12,171.07,47.1627]
[1717094136059,7.38,171.11,171.07,47.1627]
[1717094136228,7.38,171.11,171.07,45.0]
[1717094138031,7.38,171.11,171.06,47.1629]
[1717094142350,7.38,171.11,171.06,2.1629]
[1717094146340,7.38,171.11,171.07,2.1628]
[1717094147563,7.38,171.11,171.06,2.1629]
[1717094151066,13.4333,171.11,171.06,2.1629]
[1717094151559,6.0533,171.11,171.06,2.1629]
[1717094151768,21.5978,171.11,171.06,2.1629]
[1717094151943,21.5978,171.11,171.05,47.163]
[1717094152304,21.5978,171.11,171.05,45.0]
[1717094152555,15.921,171.1,171.06,45.0]
[1717094152760,6.0333,171.09,171.04,47.1631]
[1717094153158,7.38,171.08,171.04,47.1631]
[1717094153370,6.0333,171.07,171.04,45.0]
[1717094153767,22.3927,171.07,171.04,47.1631]
[1717094154075,22.3927,171.07,171.04,47.1632]
[1717094154946,29.7727,171.07,171.04,47.1632]
[1717094157771,13.4133,171.07,171.04,47.1632]
[1717094160274,21.7827,171.11,171.05,2.163]
[1717094160499,21.7827,171.11,171.05,47.163]
[1717094160777,23.945,171.11,171.05,47.163]
[1717094160948,6.0386,171.1,171.05,45.0]
[1717094161281,6.0386,171.1,171.05,47.163]
[1717094163567,15.6896,171.11,171.05,47.163]
[1717094164366,15.6896,171.11,171.05,2.163]
[1717094166294,15.6896,171.11,171.04,47.1631]
[1717094166472,15.6896,171.11,171.04,54.5431]
[1717094166672,15.6896,171.11,171.05,2.1631]
[1717094167282,15.6896,171.11,171.03,8.77420264]
[1717094167572,15.6896,171.11,171.03,2.1633]
[1717094167753,21.73597692,171.11,171.03,2.1633]
[1717094167956,21.73597692,171.11,171.03,9.5433]
[1717094168476,21.73597692,171.11,171.03,18.31750264]
[1717094169058,21.73597692,171.11,171.04,2.1632]
[1717094169473,21.73597692,171.11,171.04,47.1632]
[1717094169863,21.73597692,171.11,171.04,54.5432]
[1717094170153,6.2526,171.13,171.06,7.38]
[1717094170371,7.38,171.12,171.06,9.5429]
[1717094170571,7.38,171.12,171.07,45.0]
[1717094172193,6.2526,171.13,171.07,45.0]
[1717094172684,6.2526,171.13,171.07,52.38]
[1717094172888,6.2526,171.13,171.07,47.1628]
[1717094173083,13.6326,171.13,171.08,52.38]
[1717094173291,6.2526,171.13,171.08,7.38]
[1717094173601,7.38,171.11,171.09,45.0]
[1717094176275,22.0032,171.16,171.04,10.93730264]
[1717094176483,7.38,171.09,171.04,2.1631]
[1717094176689,7.38,171.09,171.05,45.0]
[1717094176895,7.38,171.09,171.04,2.1631]
[1717094177605,22.0032,171.16,171.04,2.1631]
[1717094178481,22.0032,171.16,171.04,47.1631]
[1717094178711,22.0032,171.16,171.04,45.0]
[1717094184002,22.0032,171.16,171.04,47.1632]
[1717094184308,22.0032,171.16,171.04,54.5432]
[1717094184613,22.0032,171.16,171.11,2.1622]
[1717094184832,22.0032,171.16,171.08,2.1626]
[1717094185205,7.38,171.15,171.09,7.38]
[1717094185407,15.5001,171.16,171.1,52.38]
[1717094185723,15.5001,171.16,171.11,45.0]
[1717094186093,12.14488357,171.19,171.11,52.38]
[1717094186324,7.38,171.17,171.11,52.38]
[1717094186490,7.38,171.17,171.11,45.0]
[1717094186902,12.14488357,171.19,171.11,45.0]
[1717094187229,6.0965,171.19,171.11,45.0]
[1717094187404,6.05206984,171.18,171.11,45.0]
[1717094192111,8.3345,171.16,171.11,45.0]
[1717094192919,6.1728,171.14,171.11,45.0]
[1717094193127,2.1621,171.13,171.06,2.1628]
[1717094193315,7.38,171.11,171.06,45.0]
[1717094193614,7.38,171.1,171.04,16.15420264]
[1717094193822,7.38,171.1,171.05,2.1631]
[1717094194010,7.38,171.1,171.04,8.77420264]
[1717094194011,7.38,171.09,171.04,2.1631]
[1717094194396,7.38,171.09,171.03,13.8659]
[1717094194627,7.38,171.09,171.05,2.163]
[1717094196229,7.38,171.09,171.04,45.0]
[1717094196532,7.38,171.08,171.05,2.163]
[1717094196701,7.38,171.09,171.05,2.163]
[1717094197417,7.38,171.09,171.04,47.1632]
[1717094199009,7.38,171.09,171.05,45.0]
[1717094199226,7.38,171.09,171.03,45.0]
[1717094199425,7.38,171.09,171.03,52.38]
[1717094199628,7.38,171.09,171.03,54.5432]
[1717094199926,6.0458888,171.12,171.04,9.5432]
[1717094200128,6.0458888,171.12,171.05,45.0]
[1717094202718,6.0458888,171.12,171.04,45.0]
[1717094204634,6.0458888,171.12,171.03,2.1633]
[1717094204635,6.0458888,171.12,171.03,54.5433]
[1717094207924,6.0458888,171.12,171.03,47.1633]
[1717094208128,6.0458888,171.12,171.03,54.5433]
[1717094210821,6.0458888,171.12,171.04,7.38]
[1717094211027,6.0458888,171.12,171.05,45.0]
[1717094211239,6.0458888,171.12,171.05,52.38]
[1717094213624,6.0458888,171.12,171.05,45.0]
[1717094213833,6.0458888,171.12,171.05,7.38]
[1717094214037,6.0458888,171.12,171.06,45.0]
[1717094214620,6.0458888,171.12,171.05,45.0]
[1717094215838,10.87216611,171.14,171.05,45.0]
[1717094216064,16.91841391,171.14,171.05,45.0]
[1717094216346,16.91841391,171.14,171.04,45.0]
[1717094216537,16.91841391,171.14,171.05,7.38]
[1717094216748,16.91841391,171.14,171.06,45.0]
[1717094219356,12.2190478,171.14,171.06,45.0]
[1717094219553,7.38,171.12,171.06,52.38]
[1717094220545,12.2190478,171.14,171.07,7.38]
[1717094220890,12.2190478,171.14,171.08,52.38]
[1717094221051,19.5990478,171.14,171.09,45.0]
[1717094221260,35.9481478,171.14,171.09,45.0]
[1717094221455,7.38,171.13,171.09,45.0]
[1717094221645,6.1138,171.12,171.08,45.0]
[1717094221963,29.2167,171.12,171.08,45.0]
[1717094222158,21.8367,171.11,171.05,8.7742082]
[1717094222463,7.38,171.06,171.01,2.1635]
[1717094222683,7.38,171.04,170.98,7.38]
[1717094222831,8.2769,171.05,170.98,7.38]
[1717094223032,8.2769,171.05,170.97,9.544]
[1717094223337,8.2769,171.05,170.98,2.1639]
[1717094223531,8.2769,171.05,170.98,9.5439]
[1717094223771,8.2769,171.05,170.97,9.544]
[1717094224234,2.1635,171.02,170.91,64.4585]
[1717094224430,2.1634,171.03,170.96,7.38]
[1717094224636,2.1634,171.03,170.95,2.1642]
[1717094224865,2.1634,171.03,170.96,7.38]
[1717094225042,2.1634,171.03,170.96,9.5442]
[1717094225242,2.1634,171.03,170.96,2.1642]
[1717094225482,2.1634,171.03,170.96,7.38]
[1717094225774,2.1634,171.03,170.95,2.1643]
[1717094225935,2.1634,171.03,170.96,7.38]
[1717094226145,2.1634,171.03,170.97,45.0]
[1717094227255,2.1634,171.03,170.95,2.1643]
[1717094227954,2.1634,171.02,170.95,2.1643]
[1717094228150,2.1634,171.03,170.95,2.1643]
[1717094228545,2.1634,171.03,170.95,47.1643]